fUST/lending_fUST_20260605
["ID","MTS","AMOUNT","RATE_DAILY","PERIOD"]
[424194845,1780642239000,-336.97,0.00019726,2]
[424194860,1780642239000,-500.0,0.00019816,2]
[424194861,1780642239000,-500.0,0.00019816,2]
[424194859,1780642239000,-500.0,0.00019816,2]
[424194852,1780642239000,-626.60108494,0.00019816,2]
[424194854,1780642239000,-500.0,0.00019816,2]
[424194856,1780642239000,-500.0,0.00019816,2]
[424194864,1780642239000,-500.0,0.00019816,2]
[424194853,1780642239000,-500.0,0.00019816,2]
[424194846,1780642239000,-659.14917623,0.000198,2]
[424194850,1780642239000,-500.0,0.00019816,2]
[424194847,1780642239000,-198.58429446,0.000198,2]
[424194863,1780642239000,-500.0,0.00019816,2]
[424194851,1780642239000,-314.03709479,0.00019816,2]
[424194930,1780642240000,-500.0,0.00019997,2]
[424194928,1780642240000,-500.0,0.00019997,2]
[424194927,1780642240000,-500.0,0.00019997,2]
[424194926,1780642240000,-500.0,0.00019997,2]
[424194938,1780642240000,-500.0,0.00019997,2]
[424194925,1780642240000,-500.0,0.00019997,2]
[424194923,1780642240000,-500.0,0.00019997,2]
[424194918,1780642240000,-500.0,0.00019997,2]
[424194924,1780642240000,-500.0,0.00019997,2]
[424194931,1780642240000,-500.0,0.00019997,2]
[424194944,1780642240000,-500.0,0.00019997,2]
[424194933,1780642240000,-500.0,0.00019997,2]
[424194932,1780642240000,-500.0,0.00019997,2]
[424194934,1780642240000,-500.0,0.00019997,2]
[424194936,1780642240000,-500.0,0.00019997,2]
[424194943,1780642240000,-500.0,0.00019997,2]
[424194935,1780642240000,-500.0,0.00019997,2]
[424194942,1780642240000,-500.0,0.00019997,2]
[424194937,1780642240000,-551.31487257,0.00019997,2]
[424194940,1780642240000,-500.0,0.00019997,2]
[424194922,1780642240000,-500.0,0.00019997,2]
[424194929,1780642240000,-500.0,0.00019997,2]
[424194921,1780642240000,-500.0,0.00019997,2]
[424194902,1780642240000,-195.58474377,0.00019997,2]
[424194916,1780642240000,-500.0,0.00019997,2]
[424194894,1780642240000,-600.0,0.00019847,2]
[424194900,1780642240000,-500.0,0.00019997,2]
[424194893,1780642240000,-10887.0619063,0.00019817,2]
[424194901,1780642240000,-213.2185131,0.00019997,2]
[424194899,1780642240000,-392.71442406,0.00019996,2]
[424194897,1780642240000,-500.0,0.00019996,2]
[424194895,1780642240000,-154.32410008,0.000199,2]
[424194898,1780642240000,-500.0,0.00019996,2]
[424194896,1780642240000,-220.24,0.00019989,3]
[424194907,1780642240000,-500.0,0.00019997,2]
[424194904,1780642240000,-500.0,0.00019997,2]
[424194909,1780642240000,-500.0,0.00019997,2]
[424194908,1780642240000,-500.0,0.00019997,2]
[424194906,1780642240000,-500.0,0.00019997,2]
[424194903,1780642240000,-518.01623558,0.00019997,2]
[424194905,1780642240000,-500.0,0.00019997,2]
[424194910,1780642240000,-500.0,0.00019997,2]
[424194911,1780642240000,-500.0,0.00019997,2]
[424194913,1780642240000,-500.0,0.00019997,2]
[424194914,1780642240000,-500.0,0.00019997,2]
[424194912,1780642240000,-500.0,0.00019997,2]
[424194919,1780642240000,-500.0,0.00019997,2]
[424194939,1780642240000,-500.0,0.00019997,2]
[424194964,1780642240000,-500.0,0.00019997,2]
[424194946,1780642240000,-500.0,0.00019997,2]
[424194977,1780642240000,-4127.00399812,0.00019999,2]
[424194976,1780642240000,-4127.00399812,0.00019999,2]
[424194974,1780642240000,-4127.00399812,0.00019999,2]
[424194978,1780642240000,-4127.00399812,0.00019999,2]
[424194980,1780642240000,-4127.00399812,0.00019999,2]
[424194979,1780642240000,-4127.00399812,0.00019999,2]
[424194985,1780642240000,-4127.00399812,0.00019999,2]
[424194986,1780642240000,-4164.52221628,0.00019999,2]
[424194984,1780642240000,-4127.00399812,0.00019999,2]
[424194981,1780642240000,-4127.00399812,0.00019999,2]
[424194982,1780642240000,-4127.00399812,0.00019999,2]
[424194983,1780642240000,-4127.00399812,0.00019999,2]
[424194987,1780642240000,-4164.52221628,0.00019999,2]
[424194988,1780642240000,-4164.52221628,0.00019999,2]
[424194989,1780642240000,-4164.52221628,0.00019999,2]
[424194991,1780642240000,-4164.52221628,0.00019999,2]
[424194990,1780642240000,-4164.52221628,0.00019999,2]
[424194994,1780642240000,-4164.52221628,0.00019999,2]
[424194992,1780642240000,-4164.52221628,0.00019999,2]
[424194996,1780642240000,-301803.91943255,0.0002,2]
[424194995,1780642240000,-6214.74853812,0.00019999,2]
[424194975,1780642240000,-4127.00399812,0.00019999,2]
[424194970,1780642240000,-4127.00399812,0.00019999,2]
[424194941,1780642240000,-500.0,0.00019997,2]
[424194971,1780642240000,-4127.00399812,0.00019999,2]
[424194969,1780642240000,-4127.00399812,0.00019999,2]
[424194945,1780642240000,-500.0,0.00019997,2]
[424194956,1780642240000,-500.0,0.00019997,2]
[424194950,1780642240000,-500.0,0.00019997,2]
[424194953,1780642240000,-500.0,0.00019997,2]
[424194947,1780642240000,-400.0,0.00019997,2]
[424194960,1780642240000,-500.0,0.00019997,2]
[424194952,1780642240000,-500.0,0.00019997,2]
[424194958,1780642240000,-500.0,0.00019997,2]
[424194954,1780642240000,-500.0,0.00019997,2]
[424194949,1780642240000,-500.0,0.00019997,2]
[424194948,1780642240000,-500.0,0.00019997,2]
[424194968,1780642240000,-4127.00399812,0.00019999,2]
[424194967,1780642240000,-650.39306242,0.00019999,2]
[424194951,1780642240000,-500.0,0.00019997,2]
[424194966,1780642240000,-500.0,0.00019997,2]
[424194972,1780642240000,-4127.00399812,0.00019999,2]
[424194965,1780642240000,-650.0,0.00019997,2]
[424194961,1780642240000,-500.0,0.00019997,2]
[424194973,1780642240000,-4127.00399812,0.00019999,2]
[424194962,1780642240000,-500.0,0.00019997,2]
[424194963,1780642240000,-500.0,0.00019997,2]
[424195011,1780642244000,-5000.0,0.00019618,2]
[424195012,1780642244000,-20998.18960802,0.0002,2]
[424195192,1780643251000,-484.32558408,0.00010962,2]
[424195209,1780643314000,-4515.67441592,0.00010962,2]
[424195240,1780643432000,-307.0373061,0.00011,2]
[424195242,1780643432000,-2157.98722292,0.00011,2]
[424195243,1780643432000,-5000.0,0.00011,2]
[424195244,1780643432000,-4448.75425548,0.00011,2]
[424195241,1780643432000,-2534.97547098,0.00011,2]
[424195296,1780643441000,-156.0,0.000185,2]
[424195292,1780643441000,-318.36814713,0.0001836,2]
[424195294,1780643441000,-270.73730985,0.00018465,2]
[424195297,1780643441000,-156.0,0.000185,2]
[424195290,1780643441000,-378.18210183,0.0001836,2]
[424195291,1780643441000,-305.42785619,0.0001836,2]
[424195289,1780643441000,-381.08296912,0.0001836,2]
[424195286,1780643441000,-152.71392809,0.00018002,2]
[424195281,1780643441000,-166.0,0.00018,2]
[424195284,1780643441000,-190.54148456,0.00018002,2]
[424195283,1780643441000,-1028.81176009,0.00018,2]
[424195285,1780643441000,-189.09105091,0.00018002,2]
[424195282,1780643441000,-44000.0,0.00018,2]
[424195279,1780643441000,-1000.0,0.00017963,2]
[424195288,1780643441000,-685.1595902,0.00018038,2]
[424195276,1780643441000,-157.0,0.00015918,3]
[424195278,1780643441000,-1914.43659708,0.000179,2]
[424195287,1780643441000,-159.18407357,0.00018002,2]
[424195280,1780643441000,-299.50891561,0.00018,14]
[424195277,1780643441000,-175.512188,0.00017045,2]
[424195275,1780643441000,-220.49352407,0.00015065,2]
[424195274,1780643441000,-151.54,0.00012,2]
[424195272,1780643441000,-551.24574452,0.00011,2]
[424195273,1780643441000,-3323.09667645,0.00011,2]
[424195299,1780643441000,-197.1238308,0.00018527,2]
[424195298,1780643441000,-156.0,0.000185,2]
[424195309,1780643441000,-355.91,0.00019452,2]
[424195295,1780643441000,-166.0,0.000185,2]
[424195323,1780643441000,-300.0,0.00019929,2]
[424195324,1780643441000,-11007.69649941,0.00019931,2]
[424195314,1780643441000,-166.0,0.000197,2]
[424195321,1780643441000,-151.0,0.00019821,2]
[424195320,1780643441000,-151.0,0.00019821,2]
[424195318,1780643441000,-151.0,0.00019821,2]
[424195293,1780643441000,-2824.41363067,0.00018465,2]
[424195317,1780643441000,-3042.29808751,0.000198,2]
[424195315,1780643441000,-355.91,0.00019726,2]
[424195316,1780643441000,-395.48950574,0.000198,2]
[424195313,1780643441000,-155.821,0.00019607,2]
[424195319,1780643441000,-151.0,0.00019821,2]
[424195307,1780643441000,-1443.84668388,0.00019401,2]
[424195301,1780643441000,-152.0,0.0001877,7]
[424195308,1780643441000,-516.8271188,0.00019419,5]
[424195311,1780643441000,-3042.29808751,0.000196,2]
[424195300,1780643441000,-355.91,0.0001863,2]
[424195310,1780643441000,-395.48950574,0.000196,2]
[424195312,1780643441000,-160.0,0.00019606,2]
[424195305,1780643441000,-156.0,0.000193,2]
[424195304,1780643441000,-166.0,0.000193,2]
[424195302,1780643441000,-355.91,0.00018904,2]
[424195306,1780643441000,-659.80347725,0.000194,2]
[424195303,1780643441000,-355.91,0.00019178,2]
[424195322,1780643441000,-500.0,0.00019821,2]
[424195378,1780643444000,-152.0,0.000187,7]
[424195379,1780643444000,-11398.0000001,0.00019931,2]
[424195377,1780643444000,-5000.0,0.00011,2]
[424195389,1780643447000,-28896.20948757,0.00019931,2]
[424195390,1780643459000,169.790678,0.00019738,120]
[424195554,1780644128000,50000.0,7.6e-05,2]
[424195557,1780644128000,30000.0,7.6e-05,2]
[424195556,1780644128000,91099.22457118,7.6e-05,2]
[424195555,1780644128000,25000.0,7.6e-05,2]
[424195559,1780644137000,171.0,0.00012,120]
[424195560,1780644138000,197.89177953,0.00023828,120]
[424195561,1780644138000,200.0,8e-05,7]
[424195562,1780644144000,782.4042511,0.00023828,120]
[424195563,1780644145000,298.7768386,9e-05,120]
[424195565,1780644211000,-158.0,8.2e-05,8]
[424195567,1780644238000,-251.53564635,7.599e-05,2]
[424195566,1780644238000,-433.45811007,7.599e-05,2]
[424195568,1780644242000,-297.6729855,7.599e-05,2]
[424195569,1780644243000,-1125.76884864,7.599e-05,2]
[424195607,1780644418000,-336.57899379,7.599e-05,2]
[424195608,1780644420000,-676.45081764,7.599e-05,2]
[424195609,1780644422000,-316.59738628,7.599e-05,2]
[424195610,1780644424000,-347.71069291,7.599e-05,2]
[424195611,1780644424000,-78.44050098,7.599e-05,2]
[424195612,1780644428000,-258.83556483,7.599e-05,2]
[424195613,1780644430000,-500.00364558,7.599e-05,2]
[424195615,1780644433000,-231.52176973,7.599e-05,2]
[424195616,1780644436000,-372.37374069,7.599e-05,2]
[424195617,1780644438000,-420.61563084,7.6e-05,2]
[424195618,1780644440000,-156.9175465,7.6e-05,2]
[424195619,1780644443000,-310.36452317,7.6e-05,2]
[424195620,1780644445000,-450.43058049,7.6e-05,2]
[424195621,1780644446000,-436.99071529,7.6e-05,2]
[424195622,1780644451000,-253.95433764,7.6e-05,2]
[424195695,1780644631000,-500.0,7.599e-05,2]
[424195691,1780644631000,-400.499995,7.599e-05,2]
[424195700,1780644631000,-500.0,7.599e-05,2]
[424195693,1780644631000,-99.500005,7.599e-05,2]
[424195698,1780644631000,-613.84541101,7.599e-05,2]
[424195708,1780644631000,-8293.34459845,7.6e-05,2]
[424195704,1780644631000,-500.0,7.599e-05,2]
[424195706,1780644631000,-1232.20778399,7.6e-05,2]
[424195713,1780644631000,-433.45811007,7.6e-05,2]
[424195715,1780644631000,-7722.97816275,7.6e-05,2]
[424195702,1780644631000,-500.0,7.599e-05,2]
[424195710,1780644631000,-1497.11482284,7.6e-05,2]
[424195884,1780644640000,-5029.17032216,7.6e-05,2]
[424195902,1780644641000,-334.49516126,8.219e-05,2]
[424195898,1780644641000,-2120.24758729,8e-05,2]
[424195897,1780644641000,-2365.19780595,8e-05,2]
[424195899,1780644641000,-514.55460676,8e-05,2]
[424195896,1780644641000,-5000.0,8e-05,2]
[424195894,1780644641000,-91972.34177718,7.6e-05,2]
[424195887,1780644641000,-3191.72976468,7.6e-05,2]
[424195888,1780644641000,-712.58951452,7.6e-05,2]
[424195886,1780644641000,-23612.93680511,7.6e-05,2]
[424195903,1780644641000,-271.80429101,8.6e-05,2]
[424195895,1780644641000,-5759.07,8e-05,2]
[424195900,1780644641000,-179.03685823,8e-05,2]
[424195905,1780644641000,-179.03685823,0.00011855,2]
[424195904,1780644641000,-685.1595902,0.00010329,2]
[424195906,1780644641000,-151.47,0.00012,2]
[424195907,1780644641000,-151.42,0.00012,2]
[424195909,1780644641000,-175.512188,0.00012216,2]
[424195912,1780644641000,-1941.18335628,0.000125,2]
[424195910,1780644641000,-153.6745784,0.000125,2]
[424195914,1780644641000,-9720.13115202,0.000125,2]
[424195916,1780644641000,-1028.81176009,0.000125,2]
[424195908,1780644641000,-151.42,0.00012,2]
[424195917,1780644641000,-166.0,0.0001286,2]
[424195915,1780644641000,-18118.99847303,0.000125,2]
[424195919,1780644641000,-2449.00238883,0.00013,2]
[424195918,1780644641000,-11658.99127797,0.00013,2]
[424195901,1780644641000,-500.0,8.219e-05,2]
[424195933,1780644643000,-2140.0,0.00013,2]
[424195932,1780644643000,-3658.80553173,0.00013,2]
[424195945,1780644646000,-6122.93333856,0.00013,2]
[424195966,1780644733000,420.24048237,7.499e-05,2]
[424195969,1780644776000,169.790678,0.0001126,120]
[424195972,1780644782000,427.13879895,0.00023821,120]
[424196087,1780645484000,-103.28983509,8e-05,2]
[424196086,1780645484000,-300.0,7.999e-05,2]
[424196088,1780645486000,-556.73554364,8e-05,2]
[424196089,1780645488000,-173.72927182,8e-05,2]
[424196202,1780645832000,-5000.0,8e-05,2]
[424196203,1780645832000,-3533.90626845,8e-05,2]
[424196205,1780645832000,-1134.51442417,8e-05,2]
[424196216,1780645832000,-2651.30738422,8.959e-05,2]
[424196211,1780645832000,-6966.42069262,8.959e-05,2]
[424196209,1780645832000,-331.57930738,8e-05,2]
[424196214,1780645832000,-581.95799728,8.959e-05,2]
[424196199,1780645832000,-306.05955432,8e-05,2]
[424196282,1780645838000,-500.0,0.00012999,2]
[424196281,1780645838000,-500.0,0.00012999,2]
[424196289,1780645838000,-500.0,0.00012999,2]
[424196291,1780645838000,-500.0,0.00012999,2]
[424196290,1780645838000,-500.0,0.00012999,2]
[424196292,1780645838000,-500.0,0.00012999,2]
[424196285,1780645838000,-500.0,0.00012999,2]
[424196284,1780645838000,-500.0,0.00012999,2]
[424196287,1780645838000,-500.0,0.00012999,2]
[424196286,1780645838000,-500.0,0.00012999,2]
[424196288,1780645838000,-500.0,0.00012999,2]
[424196294,1780645838000,-500.0,0.00012999,2]
[424196304,1780645838000,-500.0,0.00013049,2]
[424196293,1780645838000,-500.0,0.00012999,2]
[424196278,1780645838000,-500.0,0.00012999,2]
[424196283,1780645838000,-500.0,0.00012999,2]
[424196276,1780645838000,-500.0,0.00012999,2]
[424196262,1780645838000,-137.55160768,8.959e-05,2]
[424196280,1780645838000,-500.0,0.00012999,2]
[424196299,1780645838000,-500.0,0.00012999,2]
[424196260,1780645838000,-5000.0,8.869e-05,2]
[424196265,1780645838000,-152.0,0.00010662,2]
[424196264,1780645838000,-385.7203026,8.959e-05,2]
[424196267,1780645838000,-24324.1178497,0.0001125,2]
[424196266,1780645838000,-1701.04206086,0.00010879,2]
[424196268,1780645838000,-169.790678,0.0001126,2]
[424196270,1780645838000,-175.512189,0.00012524,2]
[424196271,1780645838000,-1370.58438731,0.00012841,2]
[424196269,1780645838000,-151.47,0.00012,2]
[424196272,1780645838000,-6177.79430259,0.00012841,2]
[424196274,1780645838000,-345.98282345,0.00012999,2]
[424196277,1780645838000,-195.58474377,0.00012999,2]
[424196275,1780645838000,-213.2185131,0.00012999,2]
[424196279,1780645838000,-500.0,0.00012999,2]
[424196273,1780645838000,-385.7203026,0.00012841,2]
[424196296,1780645838000,-500.0,0.00012999,2]
[424196310,1780645838000,-247.49905162,0.00013049,2]
[424196295,1780645838000,-500.0,0.00012999,2]
[424196319,1780645838000,-500.0,0.00013322,2]
[424196321,1780645838000,-3530.034582,0.00013322,2]
[424196325,1780645838000,-3530.034582,0.00013322,2]
[424196322,1780645838000,-3530.034582,0.00013322,2]
[424196324,1780645838000,-3530.034582,0.00013322,2]
[424196323,1780645838000,-3530.034582,0.00013322,2]
[424196326,1780645838000,-3530.034582,0.00013322,2]
[424196328,1780645838000,-3530.034582,0.00013322,2]
[424196318,1780645838000,-500.0,0.00013322,2]
[424196329,1780645838000,-3530.034582,0.00013322,2]
[424196327,1780645838000,-3530.034582,0.00013322,2]
[424196330,1780645838000,-3530.034582,0.00013322,2]
[424196332,1780645838000,-3530.034582,0.00013322,2]
[424196333,1780645838000,-500.0,0.00013323,2]
[424196297,1780645838000,-500.0,0.00012999,2]
[424196320,1780645838000,-178.624404,0.00013322,2]
[424196312,1780645838000,-500.0,0.00013049,2]
[424196334,1780645838000,-500.0,0.00013323,2]
[424196309,1780645838000,-244.01428968,0.00013049,2]
[424196331,1780645838000,-3530.034582,0.00013322,2]
[424196298,1780645838000,-500.0,0.00012999,2]
[424196302,1780645838000,-500.0,0.00013049,2]
[424196300,1780645838000,-519.73636955,0.00012999,2]
[424196314,1780645838000,-500.0,0.00013322,2]
[424196316,1780645838000,-500.0,0.00013322,2]
[424196315,1780645838000,-500.0,0.00013322,2]
[424196301,1780645838000,-63346.84766499,0.00013,2]
[424196307,1780645838000,-500.0,0.00013049,2]
[424196313,1780645838000,-499.49097018,0.00013223,2]
[424196317,1780645838000,-500.0,0.00013322,2]
[424196308,1780645838000,-255.98571032,0.00013049,2]
[424196303,1780645838000,-500.0,0.00013049,2]
[424196311,1780645838000,-151.5,0.00013049,2]
[424196306,1780645838000,-547.2779755,0.00013049,2]
[424196305,1780645838000,-500.0,0.00013049,2]
[424196370,1780645839000,-3534.64742744,0.00014638,2]
[424196377,1780645839000,-3534.64742744,0.00014638,2]
[424196382,1780645839000,-151.0,0.00014999,2]
[424196378,1780645839000,-3534.64742744,0.00014638,2]
[424196373,1780645839000,-3534.64742744,0.00014638,2]
[424196380,1780645839000,-151.96,0.00014683,2]
[424196383,1780645839000,-167.915799,0.00014999,2]
[424196379,1780645839000,-659.80347725,0.00014639,2]
[424196376,1780645839000,-3534.64742744,0.00014638,2]
[424196375,1780645839000,-3534.64742744,0.00014638,2]
[424196372,1780645839000,-3534.64742744,0.00014638,2]
[424196366,1780645839000,-3534.64742744,0.00014638,2]
[424196384,1780645839000,-1015.30205655,0.00015,7]
[424196381,1780645839000,-152.06,0.00014857,2]
[424196374,1780645839000,-3534.64742744,0.00014638,2]
[424196390,1780645839000,-152.27,0.00015383,2]
[424196388,1780645839000,-175.512189,0.00015159,2]
[424196386,1780645839000,-184.133912,0.00015068,2]
[424196389,1780645839000,-152.0,0.00015266,2]
[424196397,1780645839000,-369.47665713,0.00015442,2]
[424196393,1780645839000,-2182.50144188,0.00015442,2]
[424196385,1780645839000,-8022.52823119,0.00015,2]
[424196395,1780645839000,-682.03170059,0.00015442,2]
[424196391,1780645839000,-152.56,0.00015407,2]
[424196394,1780645839000,-3406.74834444,0.00015442,2]
[424196392,1780645839000,-1227.65706106,0.00015442,2]
[424196396,1780645839000,-205.47027979,0.00015442,2]
[424196398,1780645839000,-499.49097018,0.00015753,2]
[424196400,1780645839000,-546.76699029,0.00015754,2]
[424196368,1780645839000,-3534.64742744,0.00014638,2]
[424196387,1780645839000,-164.61,0.00015093,2]
[424196371,1780645839000,-3534.64742744,0.00014638,2]
[424196350,1780645839000,-500.0,0.00013323,2]
[424196369,1780645839000,-3534.64742744,0.00014638,2]
[424196342,1780645839000,-500.0,0.00013323,2]
[424196344,1780645839000,-151.5,0.00013323,2]
[424196343,1780645839000,-500.0,0.00013323,2]
[424196335,1780645839000,-500.0,0.00013323,2]
[424196337,1780645839000,-500.0,0.00013323,2]
[424196336,1780645839000,-347.07780104,0.00013323,2]
[424196338,1780645839000,-500.0,0.00013323,2]
[424196339,1780645839000,-500.0,0.00013323,2]
[424196340,1780645839000,-500.0,0.00013323,2]
[424196341,1780645839000,-314.91838886,0.00013323,2]
[424196345,1780645839000,-500.0,0.00013323,2]
[424196347,1780645839000,-466.17920814,0.00013323,2]
[424196349,1780645839000,-180.84557913,0.00013323,2]
[424196348,1780645839000,-151.5,0.00013323,2]
[424196365,1780645839000,-198.97934015,0.00014638,2]
[424196346,1780645839000,-151.5,0.00013323,2]
[424196357,1780645839000,-1000.0,0.00013699,2]
[424196356,1780645839000,-504.40482707,0.00013698,2]
[424196351,1780645839000,-500.0,0.00013323,2]
[424196354,1780645839000,-500.0,0.00013323,2]
[424196353,1780645839000,-500.0,0.00013323,2]
[424196355,1780645839000,-349.94857667,0.00013323,2]
[424196359,1780645839000,-152.0,0.00014451,7]
[424196358,1780645839000,-578.93527487,0.00013699,2]
[424196360,1780645839000,-152.0,0.00014451,7]
[424196361,1780645839000,-152.0,0.00014455,7]
[424196362,1780645839000,-152.0,0.0001446,7]
[424196363,1780645839000,-164.0,0.00014598,2]
[424196367,1780645839000,-3534.64742744,0.00014638,2]
[424196364,1780645839000,-500.0,0.00014638,2]
[424196352,1780645839000,-500.0,0.00013323,2]
[424196409,1780645839000,-500.0,0.00016438,2]
[424196402,1780645839000,-170.37614165,0.0001589,3]
[424196399,1780645839000,-445.3545795,0.00015754,2]
[424196449,1780645839000,-190.54148456,0.00017984,2]
[424196450,1780645839000,-152.71392809,0.00017984,2]
[424196452,1780645839000,-177.40471026,0.00017998,2]
[424196451,1780645839000,-159.18407357,0.00017984,2]
[424196454,1780645839000,-415.50385783,0.00018047,2]
[424196453,1780645839000,-338.43766938,0.00018047,2]
[424196440,1780645839000,-151.0,0.00017208,2]
[424196455,1780645839000,-499.49097018,0.00018284,2]
[424196443,1780645839000,-151.0,0.00017559,2]
[424196448,1780645839000,-189.09105091,0.00017984,2]
[424196441,1780645839000,-151.0,0.00017208,2]
[424196442,1780645839000,-151.0,0.00017208,2]
[424196401,1780645839000,-307.34054371,0.000158,2]
[424196444,1780645839000,-172.13909562,0.000178,2]
[424196432,1780645839000,-295.07642,0.00016724,2]
[424196456,1780645839000,-378.18210183,0.00018342,2]
[424196460,1780645839000,-152.74116058,0.00018342,2]
[424196459,1780645839000,-318.36814713,0.00018342,2]
[424196464,1780645839000,-160.62604953,0.00018342,2]
[424196462,1780645839000,-170.8634254,0.00018342,2]
[424196465,1780645839000,-153.46257855,0.00018355,2]
[424196457,1780645839000,-381.08296912,0.00018342,2]
[424196467,1780645839000,-204.47983466,0.00018355,2]
[424196469,1780645839000,-206.17071742,0.00018355,2]
[424196472,1780645839000,-354.80942051,0.00018355,2]
[424196470,1780645839000,-182.76651375,0.00018355,2]
[424196471,1780645839000,-172.2715597,0.00018355,2]
[424196474,1780645839000,-193.74815149,0.00018355,2]
[424196473,1780645839000,-175.43411161,0.00018355,2]
[424196475,1780645839000,-200.43645569,0.00018355,2]
[424196458,1780645839000,-305.42785619,0.00018342,2]
[424196435,1780645839000,-500.0,0.00016999,2]
[424196446,1780645839000,-170.0,0.00017886,2]
[424196434,1780645839000,-295.07642,0.00016724,2]
[424196431,1780645839000,-295.07642,0.00016724,2]
[424196404,1780645839000,-161.86,0.00016001,2]
[424196405,1780645839000,-161.86,0.00016003,2]
[424196410,1780645839000,-500.0,0.00016438,2]
[424196407,1780645839000,-156.59299,0.00016438,2]
[424196411,1780645839000,-500.0,0.00016438,2]
[424196406,1780645839000,-161.87,0.00016005,2]
[424196408,1780645839000,-500.0,0.00016438,2]
[424196413,1780645839000,-500.0,0.00016438,2]
[424196424,1780645839000,-295.07642,0.00016438,2]
[424196423,1780645839000,-295.07642,0.00016438,2]
[424196412,1780645839000,-500.0,0.00016438,2]
[424196414,1780645839000,-500.0,0.00016438,2]
[424196415,1780645839000,-500.0,0.00016438,2]
[424196416,1780645839000,-151.0,0.00016438,2]
[424196403,1780645839000,-161.86,0.00015999,2]
[424196422,1780645839000,-295.07642,0.00016438,2]
[424196418,1780645839000,-161.092515,0.00016438,2]
[424196433,1780645839000,-295.07642,0.00016724,2]
[424196438,1780645839000,-608.9951618,0.00017111,2]
[424196426,1780645839000,-295.07642,0.00016438,2]
[424196430,1780645839000,-385.7203026,0.00016723,2]
[424196429,1780645839000,-7548.3786899,0.00016723,2]
[424196428,1780645839000,-220.49352407,0.00016538,2]
[424196439,1780645839000,-747.67043395,0.00017111,2]
[424196427,1780645839000,-295.07642,0.00016438,2]
[424196425,1780645839000,-295.07642,0.00016438,2]
[424196420,1780645839000,-295.07642,0.00016438,2]
[424196421,1780645839000,-295.07642,0.00016438,2]
[424196417,1780645839000,-151.0,0.00016438,2]
[424196419,1780645839000,-153.87525,0.00016438,2]
[424196436,1780645839000,-6165.52582058,0.00017,2]
[424196495,1780645840000,-213.99915453,0.0001914,5]
[424196497,1780645840000,-300.0,0.00019178,2]
[424196503,1780645840000,-198.58429446,0.000195,2]
[424196490,1780645840000,-152.0,0.00018725,7]
[424196491,1780645840000,-500.0,0.00018762,2]
[424196499,1780645840000,-168.3888056,0.00019418,5]
[424196500,1780645840000,-237.25462939,0.00019418,5]
[424196506,1780645840000,-300.0,0.00019589,3]
[424196501,1780645840000,-502.51786486,0.00019418,5]
[424196508,1780645840000,-237.29370344,0.000196,2]
[424196505,1780645840000,-334.498,0.00019553,2]
[424196493,1780645840000,-156.33177108,0.00019054,2]
[424196492,1780645840000,-506.93,0.00018904,2]
[424196494,1780645840000,-2067.30847518,0.0001914,5]
[424196478,1780645840000,-158.82420155,0.00018355,2]
[424196498,1780645840000,-506.93,0.00019178,2]
[424196489,1780645840000,-152.0,0.00018719,7]
[424196488,1780645840000,-152.0,0.00018719,7]
[424196482,1780645840000,-159.87294549,0.00018355,2]
[424196481,1780645840000,-161.88113693,0.00018355,2]
[424196483,1780645840000,-177.98136645,0.00018355,2]
[424196480,1780645840000,-182.61942213,0.00018355,2]
[424196476,1780645840000,-201.10597219,0.00018355,2]
[424196479,1780645840000,-155.57272077,0.00018355,2]
[424196487,1780645840000,-151.0,0.00018656,2]
[424196477,1780645840000,-177.45631355,0.00018355,2]
[424196486,1780645840000,-151.0,0.00018656,2]
[424196484,1780645840000,-197.31707342,0.00018366,2]